{"text_format":"1","workbook":"xlsx","n_sheets":2,"sheets":["Rekap_VV","1-PZTS"],"not_rendered":{"charts":0,"images":0,"macros":1,"external_links":0,"defined_names":56,"comments":0,"pivot_tables":0},"unopened":[],"bounds":{"document_bytes":16777216,"sheet_cells":100000,"rows_first":2000,"rows_last":500,"rows_between":2000,"halvings":0,"cell_chars":16384,"cell_head_chars":4096},"cells_cut":0,"cells_raw":0,"read":"whole","date_system":"1900"}

{"sheet":"Rekap_VV","index":0,"n_rows":28,"n_cols":12,"rows_kept":28,"cut":false,"hidden":false,"merged":[[23,0,23,11],[25,0,25,11],[27,0,27,11],[12,1,12,10],[13,1,13,10],[26,0,26,11],[0,0,1,11],[21,0,21,11],[19,0,19,11],[6,3,6,9],[4,0,4,11],[7,0,7,11],[2,0,2,2],[10,0,10,11]]}
["               Soupis stavebních prací, dodávek a služeb                Příloha č. 3 výzvy "]
[]
["08/2019",null,null,null,null,null,null,null,null,null,null,"PR1906_02"]
["Předmět rozpočtu:"]
["Krajský úřad Pardubického kraje\nBudova B - nám. Republiky 12, Pardubice\nRozšíření systému PZTS - požární detektory"]
[]
["Investor:"]
["Krajský úřad Pardubického kraje\nKomenského nám. 125\n532 11 Pardubice"]
[]
[]
["CELKOVÁ REKAPITULACE "]
[]
["Pol.","Specifikace",null,null,null,null,null,null,null,null,null,"cena bez DPH"]
["1",{"$f":"'1-PZTS'!C1","v":"Poplachový zabezpečovací a tísňový systém (PZTS)"},null,null,null,null,null,null,null,null,null,{"$f":"Rekap_VV!L87:M87","v":0}]
["CENA CELKEM bez DPH",null,null,null,null,null,null,null,null,null,null,{"$f":"L14","v":0}]
["DPH 21%",null,null,null,null,null,null,null,null,null,null,{"$f":"L15*0.21","v":0}]
["CENA CELKEM včetně DPH",null,null,null,null,null,null,null,null,null,null,{"$f":"L15+L16","v":0}]
[]
[]
["Výsledná cena s DPH je zaokrouhlena na celé koruny."]
[]
["Návrh předpokládá provedení všech montážních prací a dodávek materiálů zajišťujících dokončení kompletní (funkční) dodávky, proměření správnosti a kompletnosti zapojení, všechny kontroly, zkušební provoz, všechna předepsaná měření a revize, prohlášení o shodě, atesty a certifikáty, dokumentaci skutečného provedení."]
[]
["Při vyplňování je nutné respektovat následující pokyny:"]
[]
["1. Při zpracování nabídky je nutné využít všechny části projektové dokumentace - technickou zprávu, výkresy, specifikaci dodávek a prací"]
["2. Každá dodavatelem vyplněná položka musí obsahovat veškeré technicky a logicky dovoditelené součásti dodávky a montáže tak, aby cena byla konečná a celkové dílo bylo kompletní a funkční. Dodavatel dále vyplní ve výkazu výměr vedle položkových cen také barevně zvýrazněná pole pro výrobce a typové číslo vybraných položek. Ve výkazu výměr jsou odlišeny řádky pro dodávku  (bílé podbarvení) a řádky pro montáž (šedé podbarvení), tzn. že v jednom řádku se vyplní buď pouze dodávka nebo pouze montáž."]
["3. V případě, že jsou ve výkazu výměr a další navazující dokumentaci uvedeny u navrhovaných výrobků a řešení odkazy na obchodní firmy, názvy nebo jména a příjmení, specifická označení zboží a služeb, které platí pro určitou osobu, popřípadě její organizační složku, odkazy na patenty a vynálezy, užitné vzory, průmyslové vzory, ochranné známky nebo označení původu, jedná se ve smyslu zákona o zadávání veřejných zakázek o referenční resp. srovnatelný výrobek nebo řešení, které určují nejnižší standard kvality. Tím není upřena dodavateli možnost použít i jiných kvalitativně a technicky stejných případně kvalitnějších řešení nebo výrobků. \nV případě, že dodavatel nabídne řešení nebo produkty ve smyslu odst. shora, plně odpovídá za splnění všech parametrů určených tímto projektem a zároveň přejímá veškerou odpovědnost za koordinaci se všemi navazujícími systémy a profesemi. Případná nutná úprava prováděcího projektu z důvodu uvažovaných záměn bude provedena na náklady dodavatele."]

{"sheet":"1-PZTS","index":1,"n_rows":87,"n_cols":13,"rows_kept":87,"cut":false,"hidden":false,"merged":[[85,7,85,8],[85,9,85,10],[85,11,85,12],[86,7,86,10],[86,11,86,12],[0,2,0,12],[2,0,3,0],[2,1,3,1],[2,2,2,3],[2,4,3,4],[2,5,3,5],[2,6,3,6],[2,7,2,8],[2,9,2,10],[2,11,2,12]]}
["1.",null,"Poplachový zabezpečovací a tísňový systém (PZTS)"]
[]
["Pol.","Druh","Projekt - referenční výrobek",null,"Specifikace ","Množství","Měrná jedn.","Dodávka [D]",null,"Montáž [M]",null,"Celkem [D+M]"]
[null,null,"Výrobce","Typové číslo",null,null,null,"Jednotková cena","Celkem bez DPH","Jednotková cena","Celkem bez DPH","Jednotková cena","Celkem bez DPH"]
[1,"D","Honeywell","GALAXYGD-520 ","Ústředna PZTS 16 až 520 zón s komunikátorem a zdrojem  v krytu\n- Základní počet zón ústředny  16  \n- Maximální celkový počet zón  520  \n- Maximální počet koncentrátorů  63  \n- Max. počet podsystémů  32\n- Zákl. počet PGM výstupů ústředny  8+6 \n- Max. počet PGM výstupů  260+6 \n- Počet uživatelských kódů  999  \n- Max. velikost záložního AKU  34 Ah / 12 V (do krytu ústředny max. 17 Ah) \nSTÁVAJÍCÍ !!!","STÁV.","ks",null,null,null,null,0,0]
[2,"M","RTS","222 32-5302.R00  ","Programování ústředny, uvedení do provozu  ",32,"hod",null,null,0,{"$f":"F6*J6","v":0},{"$f":"H6+J6","v":0},{"$f":"F6*L6","v":0}]
[3,"M","RTS","220 89-0202.R00  ","Revize  ",20,"hod",null,null,0,0,0,0]
[4,"M","RTS","900 - .R23  ","- Vyhledání naojovacích bodů na PZTS \n- kontrola rozsahu systému PZTS, zaznamenání změn do dokumentace skutečného stavu\n- úpravy a přepojení v souvislosti s využitím výstupů expandérů a identifikace funkcí těchto výstupů\nnespecifikované HZS   elektromontér v tarifní třídě 6 ",24,"hod",null,null,0,{"$f":"F8*J8","v":0},0,{"$f":"F8*L8","v":0}]
[5,"D",null,null,"Systémový GSM modul v kovovém krytu pro posílání SMS a volání uživateli\nGSM modul využívá možností moderních komunikačních technologií sítí GSM k odesílání SMS o požadovaných událostech v objektu společně s prozvoněním na zvolené telefonní číslo a poskytuje tak detailní přehled o událostech v budově až do jednotlivé zóny či uživatele. ",1,"KS",0,{"$f":"F9*H9","v":0},null,null,0,{"$f":"F9*L9","v":0}]
[6,"D",null,null,"SIM karta mobilního operátora … zajistí INVESTOR !!!","INV.","ks",null,null,null,null,0,0]
[7,"M","RTS","220 71-1115.R00  ","Montáž komunikačního modulu GSM/GPRS/SMS ",1,"ks",null,null,0,{"$f":"F11*J11","v":0},{"$f":"H11+J11","v":0},{"$f":"F11*L11","v":0}]
[8,"D",null,null,"Spínaný zdroj v kovovém krytu 13,8 Vss / 5,5A s výstupy a odpojovačem \nSpínaný zálohovaný zdroj v krytu pro použití v systémech EZS. Zdroj má samostatný výstup pro dobíjení záložního akumulátoru s omezením proudu, signalizačními výstupy a odpojovačem, které odpovídají požadavkům norem na zdroje v systémech EZS. Hodnota dobíjecího proudu je volitelná v několika krocích.",1,"ks",0,{"$f":"F12*H12","v":0},null,null,{"$f":"H12+J12","v":0},0]
[9,"M","RTS","220 71-1114.R00   ","Montáž zálohového zdroje   ",1,"ks",null,null,0,0,0,0]
[10,"D",null,null,"Akumulátor12V/24Ah šroubové svorky M5, životnost dle EUROBAT 3 až 5 let, VdS ",1,"ks",0,0,null,null,0,0]
[11,"M","RTS","220 71-1113.R00   ","Montáž bezúdržbového akumulátoru   ",1,"ks",null,null,0,0,0,0]
[12,"D",null,null,"Napájecí přívod 230V pro pomocný zdroj PZTS ze stávajícího rozvaděče elektro - Jistič 10A, přepěťová ochrana, 40m kabelu CYKY-J 3x1,5, revize",1,"ks",0,0,null,null,0,0]
[null,"M",null,null,"Montáž  ",1,"ks",null,null,0,0,0,0]
[13,null,null,null,"Demontáž a výměna stávajících požárních detektorů"]
[14,"D",null,null,"konvenční optickokouřový hlásič, bez patice\nHlásič certifikovaný dle EN 54-7 s automatickým dorovnáváním citlivosti detekce přítomnosti kouře.",40,"ks",0,0,null,null,{"$f":"H19+J19","v":0},{"$f":"F19*L19","v":0}]
[15,"D",null,null,"Patice pro montáž hlásiče na strop s vestavěným relé 12 V ss s nucenou resetací.",40,"ks",0,0,null,null,0,0]
[16,"M","RTS","222 32-5031.R00  ","Zásuvka automat. hlásiče na omítku v EZS, na kci  ",40,"ks",null,null,0,0,0,0]
[17,"M","RTS","222 32-5032.R00  ","Požární konvenční stropní bodový hlásič na patici  ",40,"ks",null,null,0,0,0,0]
[18,"M","RTS","222 32-5031.R00  ","Zásuvka automat. hlásiče na omítku v EZS, na kci   - demontáž 50% montáže",40,"ks",null,null,0,{"$f":"F23*J23","v":0},{"$f":"H23+J23","v":0},{"$f":"F23*L23","v":0}]
[19,"M","RTS","222 32-5032.R00  ","Požární konvenční stropní bodový hlásič na patici   - demontáž 50% montáže",40,"ks",null,null,0,0,0,0]
[20,null,null,null,"Rozšíření systému PZTS"]
[21,"D",null,null,"Koncentrátor v kovovém krytu pro 8 zón se 4 PGM výstupy \n- Počet zón  8  \n- Sabotážní kontakt  ano \n- Počet PGM výstupů  4  \n- Typ PGM výstupů  tranzistorové SE (volitelně SC) \n- Zatížitelnost PGM výstupů  max. 400 mA ",22,"ks",0,0,null,null,0,0]
[22,"D",null,null,"Modul v krytu s obousměrnou komunikací s bezdrátovými prvky, max.16/24 zón ",3,"ks",0,0,null,null,{"$f":"H27+J27","v":0},{"$f":"F27*L27","v":0}]
[23,"M","RTS","220 71-1112.R00   ","Montáž sběrnicového modulu   ",25,"ks",null,null,null,0,0,0]
[24,"D",null,null,"konvenční optickokouřový hlásič, bez patice\nHlásič certifikovaný dle EN 54-7 s automatickým dorovnáváním citlivosti detekce přítomnosti kouře.",245,"ks",0,{"$f":"F29*H29","v":0},null,null,0,0]
[25,"D",null,null,"Patice pro montáž hlásiče na strop s vestavěným relé 12 V ss s nucenou resetací.",245,"ks",0,0,null,null,0,0]
[26,"D",null,null,"Bezdrátový optický kouřový hlásič, napájení 1x3V Li baterie (CR123A), Signalizace  LED + bzučák ",15,"ks",0,0,null,null,{"$f":"H31+J31","v":0},{"$f":"F31*L31","v":0}]
[27,"D",null,null,"Lithiová 3V baterie typ CR123A (CR17345) s kapacitou 1400 mAh",15,"ks",0,0,null,null,0,0]
[28,"M","RTS","222 32-5031.R00  ","Zásuvka automat. hlásiče na omítku v EZS, na kci  ",260,"ks",null,null,null,{"$f":"F33*J33","v":0},0,0]
[29,"M","RTS","222 32-5032.R00  ","Požární konvenční stropní bodový hlásič na patici  ",260,"ks",null,null,null,0,0,0]
[30,"D",null,null,"Duální detektor s dosahem 12m \n- Typ  PIR + MW \n- Dosah PIR vějíř - délka  12 m \n- Dosah PIR vějíř - úhel  85 ° \n- Dosah MW - délka  12 m \n- Montážní výška  1,5 - 2,4 m \n- Citlivost  2 nebo 4 \n- Indikace poplachu  LED dioda \n- Třída prostředí  II - vnitřní všeobecné \n- Pracovní teplota  -10 - 50 °C \n- Relativní vlhkost  0 - 95 % ",6,"ks",0,0,null,null,0,0]
[31,"D",null,null,"PIR detektor s půlkulovou čočkou a dosahem 12m včetně držáku\n- Zpracování signálu  digitální \n- Typ pyroelementu  quad \n- Dosah vějíř - délka  12 m \n- Dosah vějíř - úhel  85 ° \n- Montážní výška  1,5 - 2,4 m \n- citlivost  nízká / střední / vysoká \n- Indikace poplachu  LED dioda \n- Třída prostředí  II - vnitřní všeobecné \n- Pracovní teplota  -20 - 50 °C ",8,"ks",0,0,null,null,{"$f":"H36+J36","v":0},{"$f":"F36*L36","v":0}]
[32,"D",null,null,"PIR detektor s QUAD pyroelementem a dosahem 12m \n- Zpracování signálu  digitální \n- Typ pyroelementu  quad \n- Dosah vějíř - délka  14 m \n- Dosah vějíř - úhel  110 ° \n- Montážní výška  2 - 2,7 m \n- Citlivost  automatické \n- Indikace poplachu  LED dioda \n- Třída prostředí  II - vnitřní všeobecné \n- Pracovní teplota  -20 - 50 °C \n- Relativní vlhkost  0 - 95 % ",2,"ks",0,0,null,null,0,0]
[33,"D",null,null,"Volitelná čočka dlouhý dosah 24m s hustším pokrytím ",2,"ks",0,0,null,null,0,0]
[34,"M","RTS","220 71-1301.R00   ","Montáž detektoru   ",16,"ks",null,null,null,0,0,0]
[35,"D",null,null,"Červené tlačítko, NC/NO výstup, zápustná montáž, prolam. plast, symbol EN54-11 ",21,"ks",0,{"$f":"F40*H40","v":0},null,null,{"$f":"H40+J40","v":0},{"$f":"F40*L40","v":0}]
[36,"D",null,null,"Červený zadní kryt pro povrchovou montáž tlačítek",21,"ks",0,{"$f":"F41*H41","v":0},null,null,{"$f":"H41+J41","v":0},{"$f":"F41*L41","v":0}]
[37,"D",null,null,"Plastový průhledný kryt pro tlačítka a ovládací skříňky",21,"ks",0,{"$f":"F42*H42","v":0},null,null,0,0]
[38,"D",null,null,"náhradní prolamovací plast pro tlačitka",10,"ks",0,{"$f":"F43*H43","v":0},null,null,0,0]
[39,"M","RTS","220 71-1309.R00  ","Montáž tísňového hlásiče - tlačítko  ",21,"ks",null,null,0,{"$f":"F44*J44","v":0},{"$f":"H44+J44","v":0},{"$f":"F44*L44","v":0}]
[40,"D",null,null,"Vnitřní nezálohovaná polarizovaná siréna, EN54-3 siréna bílá, 32 tónů, 2 úrovně hlasitosti, povrchová/zápustná montáž",47,"ks",0,0,null,null,0,0]
[41,"M","RTS","220 71-1401.R00 ","Montáž poplachové sirény vnitřní  ",47,"ks",null,null,0,0,0,0]
[42,"D",null,null,"Kabel F/UTP Cat.5e 4x2xAWG24, LS0H plášť modrý, Eca, kategorie 5e, třída D (100 MHz), stíněný opletení Al fólie, pro instalaci ve vnitřním prostředí",820,"m",0,0,null,null,0,0]
[43,"M","RTS","222 28-0501.R00   ","UTP,FTP,SEKU,SYKY do 7 mm vně.prům.volně ve žlabu   ",820,"m",null,null,0,0,0,0]
[44,"D",null,null,"Kabel stíněný - lanko 6 x 0,22mm2 ,každý vodič barevně odlišen, průřez lanka 0,22mm2, pro uložení pod omítku",7750,"m",0,0,null,null,0,0]
[45,"M","RTS","220 71-1501.R00   ","Montáž kabelu do 10x22 - volně - v liště, ve žlabu  ",7750,"m",null,null,0,0,0,0]
[46,"D",null,null,"Kabel Cu plný vodič, 2Ox1,5 (D)",850,"m",0,0,null,null,0,0]
[47,"M","RTS","222 28-1551.R00  ","JYTY 1 mm-CYKY do 2,5 mm, do 5 žil, volně ve žlabu ",850,"m",null,null,0,0,0,0]
[48,"D",null,null,"Krabice přístrojová - hloubka 66mm, průměr 73mm, vnitřní hloubka 65mm, spojení v souvislou řadu s roztečí 71 mm, pro přístroje s velkou hloubkou, materiál plast",80,"ks",0,{"$f":"F53*H53","v":0},null,null,0,{"$f":"F53*L53","v":0}]
[49,"M","RTS","222 26-0021.R00  ","Krabice KO 68 pod omítku + vysekání  ",80,"ks",null,null,0,{"$f":"F54*J54","v":0},0,0]
[50,"D",null,null,"Lišta hranatá 40X40, pro montáž na stěnu nebo na strop, dvojitý zámek víka ",330,"m",0,0,null,null,{"$f":"H55+J55","v":0},{"$f":"F55*L55","v":0}]
[51,"D",null,null,"Lišta hranatá 25X20, pro montáž na stěnu nebo na strop, dvojitý zámek víka ",1130,"m",0,0,null,null,0,0]
[52,"M","RTS","210 01-0105.R00  ","Lišta elektroinstalační PVC š.do 40 mm,šroubováním  ",1460,"m",null,null,0,{"$f":"F57*J57","v":0},{"$f":"H57+J57","v":0},{"$f":"F57*L57","v":0}]
[53,"D",null,null,"Ohebná trubka s nízkou mechanickou odolností (ČSN), vnější průměr 28,5 mm, vnitřní průměr 22,9 mm, 320N, pro přímé zalévání při monolitické betonáži nebo pod omítku",260,"m",0,0,null,null,0,0]
[54,"D",null,null,"Ohebná trubka s nízkou mechanickou odolností (ČSN), vnější průměr 40mm, vnitřní průměr 31mm, 320N, pro přímé zalévání při monolitické betonáži nebo pod omítku",180,"m",0,0,null,null,0,0]
[55,"M","RTS","222 26-0552.R00  ","Trubka plast.ohebná 23 pod omítku vč.drážky  ",260,"m",null,null,0,0,0,0]
[56,"M","RTS","222 26-0555.R00  ","Trubka plast.ohebná 48 pod omítku vč.drážky  ",180,"m",null,null,0,0,0,0]
[57,"D",null,null,"TRUBKA PEVNÁ PVC 50/46 PEVNÁ PLAST. ŠEDÁ 320N",120,"m",0,0,null,null,0,0]
[58,"M","RTS","222 26-0576.R00  ","Trubka plast. tuhá 50 na příchytkách vč.příchytek  ",120,"m",null,null,0,0,0,0]
[59,"D",null,null,"SESTAVA PARAPETNÍHO ŽLABU 165x53, dvoukomorového\n- Vrchní a spodní díl kanálu s děrováním dna\nŠířka 165 mm\nHloubka 53 mm\nPočet krytů 2\nVíka jsou součástí dodávky Ano\nŠířka víka 1 45 mm\nŠířka víka 2 45 mm\nSymetrické Ano\nMateriál Plast PVC\nBarva Zářivě bílá RAL 9010\nProvedení zadní stěna (vnitřní strana) - Průběžný profil tvaru C\nMontážní otvory do dna Ano\nVčetně pootřbných dílů a tvarovek",790,"m",0,0,null,null,0,0]
[60,"D",null,null,"Kryt spojů pro vrchní díl kanálů pro vestavbu přístrojů 45x45mm, ke skrytí řezných hran a fixaci kabelů",550,"ks",0,0,null,null,{"$f":"H65+J65","v":0},{"$f":"F65*L65","v":0}]
[61,"D",null,null,"Kovová přepážka, š 40mm\nvčetně příslušenství na přizemnění (spojky, konektory, vodič CYA)",790,"m",0,0,null,null,0,0]
[62,"M","RTS","222 26-0797.R00  ","Parapet. kanál, vč.příslušenství  ",790,"m",null,null,0,{"$f":"F67*J67","v":0},{"$f":"H67+J67","v":0},{"$f":"F67*L67","v":0}]
[63,"D",null,null,"Protipožární intumescentní vodou ředitelný nátěr, balení 12,5kg",3,"ks",0,0,null,null,0,0]
[64,"M","RTS","222 30-0671.R00   ","Protipožární přepážka na kabel.vedení   ",27,"ks",null,null,0,0,0,0]
[65,"M","RTS","900 - .R23  ","Rozebrání stropních podhledů a zpětné uzavření v 1.PP - nespecifikované\nHZS   elektromontér v tarifní třídě 6 ",20,"hod",null,null,0,0,0,0]
[66,"M","RTS","612 10-0031.RAA  ","Oprava omítek stěn vnitřních vápenocem. Štukových, malba ",38,"m2",null,null,0,{"$f":"F71*J71","v":0},{"$f":"H71+J71","v":0},{"$f":"F71*L71","v":0}]
[67,"M","RTS","460 68-0021.RT1  ","Průraz zdivem v cihlové zdi tloušťky 15 cm   \ndo průměru 6 cm ",70,"ks",null,null,0,0,0,0]
[68,"M","RTS","460 68-0024.R00  ","Průraz zdivem v cihlové zdi tloušťky 60 cm  ",112,"ks",null,null,0,0,0,0]
[69,"M","RTS","970 03-1060.R00  ","Vrtání jádrové do zdiva cihelného do D 60 mm ",105,"m",null,null,0,0,0,0]
[70,"M","RTS","970 03-3060.R00  ","Příp. za jádr. vrt. ve H nad 1,5 m cihel do D 60mm  ",105,"m",null,null,0,0,0,0]
[71,"M","RTS","970 03-7060.R00  ","Příp. časté přem. str. jád. vrt. v cihel do D 60mm ",105,"m",null,null,0,0,0,0]
[72,"M","RTS","970 05-1060.R00  ","Vrtání jádrové do ŽB do D 60 mm  ",10,"m",null,null,0,0,0,0]
[73,"M","RTS","970 05-6060.R00  ","Příplatek za jádr. vrt. stropu v ŽB do D 60 mm  ",10,"m",null,null,0,0,0,0]
[74,"M",null,null,"Příplatek za práci mimo běžnou pracovní dobu a o víkendech",1,"kpl.",null,null,0,{"$f":"F79*J79","v":0},{"$f":"H79+J79","v":0},{"$f":"F79*L79","v":0}]
[75,"D","RTS","141 - .R00   ","Přirážka za podružný materiál M 21, M 22   - 3%",3,"%",0,{"$f":"H80","v":0},null,null,{"$f":"H80+J80","v":0},{"$f":"L80","v":0}]
[76,"M","RTS","201 - .R00   ","Podíl přidružených výkonů   - 1%",1,"%",null,null,0,{"$f":"J81","v":0},0,{"$f":"L81","v":0}]
[77,"M","RTS","110 - .R00   ","Mimostaveništní doprava individual.   ",1,"kpl.",null,null,0,{"$f":"F82*J82","v":0},0,{"$f":"F82*L82","v":0}]
[78,"M","RTS","005241010R   ","Dokumentace skutečného provedení   ",1,"sbr",null,null,0,{"$f":"F83*J83","v":0},0,{"$f":"F83*L83","v":0}]
[79,"M","RTS","005124010R   ","Koordinační činnost   ",1,"sbr",null,null,0,{"$f":"F84*J84","v":0},0,{"$f":"F84*L84","v":0}]
[80,"M","RTS","005121020R","Vybudování, provoz a odstranění zařízení staveniště   ",1,"sbr",null,null,0,{"$f":"F85*J85","v":0},0,{"$f":"F85*L85","v":0}]
["Celkem bez DPH",null,null,null,null,null,null,{"$f":"SUM(I5:I85)","v":0},null,{"$f":"SUM(K5:K85)","v":0},null,{"$f":"SUM(M5:M85)","v":0}]
["Celkem D + M bez DPH",null,null,null,null,null,null,{"$f":"H86+J86","v":0},null,null,null,{"$f":"L86","v":0}]